Workbook

Sheet Suplementares ex5
A1: Algoritmo Simplex Rescrito usando matrizes
A3: a)
A4: variáveis básicas | B4: x | C4: y | D4: f1 | G4: variáveis não básicas | H4: f2 | I4: f3 | L4: Termos Independentes
A5: B | B5: 1 | C5: 0 | D5: -1 | G5: D | H5: 0 | I5: 0 | L5: b | M5: 1
B6: 0 | C6: 1 | D6: 0 | H6: -1 | I6: 0 | M6: 2
B7: 1 | C7: 1 | D7: 0 | H7: 0 | I7: 1 | M7: 5
A9: CB | B9: 3 | C9: 1 | D9: 0 | G9: CD | H9: 0 | I9: 0
A12: B-1 | B12: =MINVERSE(B5:D7) -> 0 | C12: -1 | D12: 1 | G12: B-1.D | H12: =MMULT(B12:D14,H5:I7) -> 1 | I12: 1 | L12: B-1.b | M12: =MMULT(B12:D14,M5:M7) -> 3
B13: 0 | C13: 1 | D13: 0 | H13: -1 | I13: 0 | M13: 2
B14: -1 | C14: -1 | D14: 1 | H14: 1 | I14: 1 | M14: 2
A16: CB.B-1D | B16: =MMULT(B9:D9,H12:I14) -> 2 | C16: 3 | G16: F=CB.B-1.b | H16: =MMULT(B9:D9,M12:M14) -> 11
A18: R= -CD+CB.B-1D | B18: =SUM(B16,-H9) -> 2 | C18: =SUM(C16,-I9) -> 3
A20: Já é uma solução óptima pois R não tem valores negativos
A22: c)
A23: variáveis básicas | B23: x | C23: y | D23: f1 | G23: variáveis não básicas | H23: f2 | I23: f3 | J23: w | L23: Termos Independentes
A24: B | B24: 1 | C24: 0 | D24: -1 | G24: D | H24: 0 | I24: 0 | J24: 1 | L24: b | M24: 1
B25: 0 | C25: 1 | D25: 0 | H25: -1 | I25: 0 | J25: 2 | M25: 2
B26: 1 | C26: 1 | D26: 0 | H26: 0 | I26: 1 | J26: 1 | M26: 5
A28: CB | B28: 3 | C28: 1 | D28: 0 | G28: CD | H28: 0 | I28: 0 | J28: -2
A31: B-1 | B31: =MINVERSE(B24:D26) -> 0 | C31: -1 | D31: 1 | G31: B-1.D | H31: =MMULT(B31:D33,H24:J26) -> 1 | I31: 1 | J31: -1 | L31: B-1.b | M31: =MMULT(B31:D33,M24:M26) -> 3
B32: 0 | C32: 1 | D32: 0 | H32: -1 | I32: 0 | J32: 2 | M32: 2
B33: -1 | C33: -1 | D33: 1 | H33: 1 | I33: 1 | J33: -2 | M33: 2
A35: CB.B-1D | B35: =MMULT(B28:D28,H31:J33) -> 2 | C35: 3 | D35: -1 | G35: F=CB.B-1.b | H35: =MMULT(B28:D28,M31:M33) -> 11
A37: R= -CD+CB.B-1D | B37: =SUM(B35,-H28) -> 2 | C37: =SUM(C35,-I28) -> 3 | D37: =SUM(D35,-J28) -> 1
A39: Já é uma solução óptima pois R não tem valores negativos
A41: d) | B41: depois de calculos elementares, f4 sai da base e f2 entra na base
A42: variáveis básicas | B42: x | C42: y | D42: f1 | E42: f2 | G42: variáveis não básicas | H42: f3 | I42: f4 | L42: Termos Independentes
A43: B | B43: 1 | C43: 0 | D43: -1 | E43: 0 | G43: D | H43: 0 | I43: 0 | L43: b | M43: 1
B44: 0 | C44: 1 | D44: 0 | E44: -1 | H44: 0 | I44: 0 | M44: 2
B45: 1 | C45: 1 | D45: 0 | E45: 0 | H45: 1 | I45: 0 | M45: 5
B46: 2 | C46: 1 | D46: 0 | E46: 0 | H46: 0 | I46: -1 | M46: 6
A48: CB | B48: 3 | C48: 1 | D48: 0 | E48: 0 | G48: CD | H48: 0 | I48: 0
A51: B-1 | B51: =MINVERSE(B43:E46) -> 0 | C51: 0 | D51: -1 | E51: 1 | G51: B-1.D | H51: =MMULT(B51:E54,H43:I46) -> -1 | I51: -1 | L51: B-1.b | M51: =MMULT(B51:E54,M43:M46) -> 1
B52: 0 | C52: 0 | D52: 2 | E52: -1 | H52: 2 | I52: 1 | M52: 4
B53: -1 | C53: 0 | D53: -1 | E53: 1 | H53: -1 | I53: -1 | M53: 0
B54: 0 | C54: -1 | D54: 2 | E54: -1 | H54: 2 | I54: 1 | M54: 2
A56: CB.B-1D | B56: =MMULT(B48:E48,H51:I54) -> -1 | C56: -2 | G56: F=CB.B-1.b | H56: =MMULT(B48:E48,M51:M54) -> 7
A58: R= -CD+CB.B-1D | B58: =B56-H48 -> -1 | C58: =C56-I48 -> -2
A60: Já é uma solução óptima pois R não tem valores negativos

Sheet Teste PL4
A1: Algoritmo Simplex Rescrito usando matrizes
A4: variáveis básicas | B4: x | C4: y | D4: z | G4: variáveis não básicas | H4: f1 | I4: f2 | J4: f3 | L4: Termos Independentes
A5: B | B5: -1.00 | C5: 3.00 | D5: 2.00 | G5: D | H5: 1.00 | I5: 0.00 | J5: 0.00 | L5: b | M5: 12.00
B6: 2.00 | C6: -1.00 | D6: 1.00 | H6: 0.00 | I6: 1.00 | J6: 0.00 | M6: 7.00
B7: 1.00 | C7: -2.00 | D7: 1.00 | H7: 0.00 | I7: 0.00 | J7: -1.00 | M7: 5.00
A9: CB | B9: 1.00 | C9: 2.00 | D9: 5.00 | G9: CD | H9: 0.00 | I9: 0.00 | J9: 0.00
A12: B-1 | B12: =MINVERSE(B5:D7) -> -0.1 | C12: 0.7 | D12: -0.5 | G12: B-1.D | H12: =MMULT(B12:D14,H5:J7) -> -0.1 | I12: 0.7 | J12: 0.5 | L12: B-1.b | M12: =MMULT(B12:D14,M5:M7) -> 1.2 | O12: delta | P12: =M12/J12 -> 2.4
B13: 0.1 | C13: 0.3 | D13: -0.5 | H13: 0.1 | I13: 0.3 | J13: 0.5 | M13: 0.8 | P13: =M13/J13 -> 1.6 | Q13: Y sai da base
B14: 0.3 | C14: -0.1 | D14: 0.5 | H14: 0.3 | I14: -0.1 | J14: -0.5 | M14: 5.4 | P14: =M14/J14 -> -10.8
G16: CB.B-1D | H16: =MMULT(B9:D9,H12:J14) -> 1.6 | I16: 0.8 | J16: -1.00 | L16: F=CB.B-1.b | M16: =MMULT(B9:D9,M12:M14) -> 29.80
G17: R= -CD+CB.B-1D | H17: =SUM(H16,-H9) -> 1.6 | I17: =SUM(I16,-I9) -> 0.8 | J17: =J16-J9 -> -1.00
G19: F3 entra na base.
A22: 2 iteração
A23: variáveis básicas | B23: x | C23: z | D23: f3 | G23: variáveis não básicas | H23: f1 | I23: f2 | J23: y | L23: Termos Independentes
A24: B | B24: -1.00 | C24: 2.00 | D24: 0.00 | G24: D | H24: 1.00 | I24: 0.00 | J24: 3.00 | L24: b | M24: 12.00
B25: 2.00 | C25: 1.00 | D25: 0.00 | H25: 0.00 | I25: 1.00 | J25: -1.00 | M25: 7.00
B26: 1.00 | C26: 1.00 | D26: -1.00 | H26: 0.00 | I26: 0.00 | J26: -2.00 | M26: 5.00
A28: CB | B28: 1.00 | C28: 5.00 | D28: 0.00 | G28: CD | H28: 0.00 | I28: 0.00 | J28: 2.00
A31: B-1 | B31: =MINVERSE(B24:D26) -> -0.2 | C31: 0.4 | D31: 0.00 | G31: B-1.D | H31: =MMULT(B31:D33,H24:J26) -> -0.2 | I31: 0.4 | J31: -1.00 | L31: B-1.b | M31: =MMULT(B31:D33,M24:M26) -> 0.4
B32: 0.4 | C32: 0.2 | D32: 0.00 | H32: 0.4 | I32: 0.2 | J32: 1.00 | M32: 6.2
B33: 0.2 | C33: 0.6 | D33: -1.00 | H33: 0.2 | I33: 0.6 | J33: 2.00 | M33: 1.6
G35: CB.B-1D | H35: =MMULT(B28:D28,H31:J33) -> 1.80 | I35: 1.40 | J35: 4.00 | L35: F=CB.B-1.b | M35: =MMULT(B28:D28,M31:M33) -> 31.40
G36: R= -CD+CB.B-1D | H36: =SUM(H35,-H28) -> 1.80 | I36: =SUM(I35,-I28) -> 1.40 | J36: =J35-J28 -> 2.00
A40: ex 16
A42: variáveis básicas | B42: x | C42: y | D42: z | G42: variáveis não básicas | H42: f1 | I42: f2 | J42: f3 | L42: Termos Independentes
A43: B | B43: -1.00 | C43: 3.00 | D43: 2.00 | G43: D | H43: 1.00 | I43: 0.00 | J43: 0.00 | L43: b | M43: 9.00
B44: 2.00 | C44: -1.00 | D44: 1.00 | H44: 0.00 | I44: 1.00 | J44: 0.00 | M44: 7.00
B45: 1.00 | C45: -2.00 | D45: 1.00 | H45: 0.00 | I45: 0.00 | J45: -1.00 | M45: 2.00
A47: CB | B47: 1.00 | C47: 2.00 | D47: 5.00 | G47: CD | H47: 0.00 | I47: 0.00 | J47: 0.00
A50: B-1 | B50: =MINVERSE(B43:D45) -> -0.1 | C50: 0.7 | D50: -0.5 | G50: B-1.D | H50: =MMULT(B50:D52,H43:J45) -> -0.1 | I50: 0.7 | J50: 0.5 | L50: B-1.b | M50: =MMULT(B50:D52,M43:M45) -> 3 | O50: delta | P50: =M50/J50 -> 6
B51: 0.1 | C51: 0.3 | D51: -0.5 | H51: 0.1 | I51: 0.3 | J51: 0.5 | M51: 2 | P51: =M51/J51 -> 4 | Q51: Y sai da base
B52: 0.3 | C52: -0.1 | D52: 0.5 | H52: 0.3 | I52: -0.1 | J52: -0.5 | M52: 3 | P52: =M52/J52 -> -6
G54: CB.B-1D | H54: =MMULT(B47:D47,H50:J52) -> 1.6 | I54: 0.8 | J54: -1.00 | L54: F=CB.B-1.b | M54: =MMULT(B47:D47,M50:M52) -> 22.00
G55: R= -CD+CB.B-1D | H55: =SUM(H54,-H47) -> 1.6 | I55: =SUM(I54,-I47) -> 0.8 | J55: =J54-J47 -> -1.00
G56: F3 entra na base.
A59: 2 iteração
A60: variáveis básicas | B60: x | C60: z | D60: f3 | G60: variáveis não básicas | H60: f1 | I60: f2 | J60: y | L60: Termos Independentes
A61: B | B61: -1.00 | C61: 2.00 | D61: 0.00 | G61: D | H61: 1.00 | I61: 0.00 | J61: 3.00 | L61: b | M61: 9.00
B62: 2.00 | C62: 1.00 | D62: 0.00 | H62: 0.00 | I62: 1.00 | J62: -1.00 | M62: 7.00
B63: 1.00 | C63: 1.00 | D63: -1.00 | H63: 0.00 | I63: 0.00 | J63: -2.00 | M63: 2.00
A65: CB | B65: 1.00 | C65: 5.00 | D65: 0.00 | G65: CD | H65: 0.00 | I65: 0.00 | J65: 2.00
A68: B-1 | B68: =MINVERSE(B61:D63) -> -0.2 | C68: 0.4 | D68: 0.00 | G68: B-1.D | H68: =MMULT(B68:D70,H61:J63) -> -0.2 | I68: 0.4 | J68: -1.00 | L68: B-1.b | M68: =MMULT(B68:D70,M61:M63) -> 1
B69: 0.4 | C69: 0.2 | D69: 0.00 | H69: 0.4 | I69: 0.2 | J69: 1.00 | M69: 5
B70: 0.2 | C70: 0.6 | D70: -1.00 | H70: 0.2 | I70: 0.6 | J70: 2.00 | M70: 4
G72: CB.B-1D | H72: =MMULT(B65:D65,H68:J70) -> 1.80 | I72: 1.40 | J72: 4.00 | L72: F=CB.B-1.b | M72: =MMULT(B65:D65,M68:M70) -> 26.00
G73: R= -CD+CB.B-1D | H73: =SUM(H72,-H65) -> 1.80 | I73: =SUM(I72,-I65) -> 1.40 | J73: =J72-J65 -> 2.00

Sheet teste PL5
A1: Algoritmo Simplex Rescrito usando matrizes
A3: 1) 2) 3)
A4: variáveis básicas | B4: x | C4: y | D4: z | G4: variáveis não básicas | H4: f1 | I4: f2 | J4: f3 | M4: Termos Independentes
A5: B | B5: 1.00 | C5: 2.00 | D5: -1.00 | G5: D | H5: -1.00 | I5: 0.00 | J5: 0.00 | M5: b | N5: 10.00
B6: 2.00 | C6: 1.00 | D6: 1.00 | H6: 0.00 | I6: 1.00 | J6: 0.00 | N6: 30.00
B7: 1.00 | C7: 1.00 | D7: 1.00 | H7: 0.00 | I7: 0.00 | J7: -1.00 | N7: 15.00
A9: CB | B9: 3.00 | C9: 2.00 | D9: 1.00 | G9: CD | H9: 0.00 | I9: 0.00 | J9: 0.00
A12: B-1 | B12: =MINVERSE(B5:D7) -> 0 | C12: 1 | D12: -1 | G12: B-1.D | H12: =MMULT(B12:D14,H5:J7) -> 0 | I12: 1 | J12: 1 | M12: B-1.b | N12: =MMULT(B12:D14,N5:N7) -> 15.00 | P12: delta | Q12: =N12/J12 -> 15
B13: 0.3333333333 | C13: -0.6666666667 | D13: 1 | H13: -0.3333333333 | I13: -0.6666666667 | J13: -1 | N13: -1.67 | Q13: =N13/J13 -> 1.666666667 | R13: Y sai da base
B14: -0.3333333333 | C14: -0.3333333333 | D14: 1 | H14: 0.3333333333 | I14: -0.3333333333 | J14: -1 | N14: 1.67 | Q14: =N14/J14 -> -1.666666667
G16: CB.B-1D | H16: =MMULT(B9:D9,H12:J14) -> -0.3333333333 | I16: 1.333333333 | J16: 0.00 | M16: F=CB.B-1.b | N16: =MMULT(B9:D9,N12:N14) -> 43.33
G17: R= -CD+CB.B-1D | H17: =SUM(H16,-H9) -> -0.3333333333 | I17: =SUM(I16,-I9) -> 1.333333333 | J17: =J16-J9 -> 0.00
A19: testar a base y,f1,f3
A20: variáveis básicas | B20: y | C20: f1 | D20: f3 | G20: variáveis não básicas | H20: f2 | I20: x | J20: z | M20: Termos Independentes
A21: B | B21: 2.00 | C21: -1.00 | D21: 0.00 | G21: D | H21: 0.00 | I21: 1.00 | J21: -1.00 | M21: b | N21: 10.00 | O21: Beta | P21: 160
B22: 1.00 | C22: 0.00 | D22: 0.00 | H22: 1.00 | I22: 2.00 | J22: 1.00 | N22: 30.00
B23: 1.00 | C23: 0.00 | D23: -1.00 | H23: 0.00 | I23: 1.00 | J23: 1.00 | N23: 15.00
A25: CB | B25: 2.00 | C25: 0.00 | D25: 0.00 | G25: CD | H25: 0.00 | I25: 3.00 | J25: 1.00
A28: B-1 | B28: =MINVERSE(B21:D23) -> 0.00 | C28: 1.00 | D28: 0.00 | G28: B-1.D | H28: =MMULT(B28:D30,H21:J23) -> 1.00 | I28: 2.00 | J28: 1.00 | M28: B-1.b | N28: =MMULT(B28:D30,N21:N23) -> 30.00
B29: -1.00 | C29: 2.00 | D29: 0.00 | H29: 2.00 | I29: 3.00 | J29: 3.00 | N29: 50.00
B30: 0.00 | C30: 1.00 | D30: -1.00 | H30: 1.00 | I30: 1.00 | J30: 0.00 | N30: 15.00
G32: CB.B-1D | H32: =MMULT(B25:D25,H28:J30) -> 2.00 | I32: 4.00 | J32: 2.00 | M32: F=CB.B-1.b | N32: =MMULT(B25:D25,N28:N30) -> 60.00
G33: R= -CD+CB.B-1D | H33: =SUM(H32,-H25) -> 2.00 | I33: =SUM(I32,-I25) -> 1.00 | J33: =J32-J25 -> 1.00
A37: 4) e 5)
A38: testar a base y,f1,f3
A39: variáveis básicas | B39: y | C39: f1 | D39: f3 | G39: variáveis não básicas | H39: f2 | I39: x | J39: z | K39: w | M39: Termos Independentes
A40: B | B40: 2.00 | C40: -1.00 | D40: 0.00 | G40: D | H40: 0.00 | I40: 1.00 | J40: -1.00 | K40: 2.00 | M40: b | N40: 10.00
B41: 1.00 | C41: 0.00 | D41: 0.00 | H41: 1.00 | I41: 2.00 | J41: 1.00 | K41: 2.00 | N41: 30.00
B42: 1.00 | C42: 0.00 | D42: -1.00 | H42: 0.00 | I42: 1.00 | J42: 1.00 | K42: 3.00 | N42: 15.00
A44: CB | B44: 2.00 | C44: 0.00 | D44: 0.00 | G44: CD | H44: 0.00 | I44: 3.00 | J44: 1.00 | K44: 5.00
A47: B-1 | B47: =MINVERSE(B40:D42) -> 0.00 | C47: 1.00 | D47: 0.00 | G47: B-1.D | H47: =MMULT(B47:D49,H40:K42) -> 1.00 | I47: 2.00 | J47: 1.00 | K47: 2.00 | M47: B-1.b | N47: =MMULT(B47:D49,N40:N42) -> 30.00 | P47: delta | Q47: =N47/K47 -> 15 | R47: y sai da base
B48: -1.00 | C48: 2.00 | D48: 0.00 | H48: 2.00 | I48: 3.00 | J48: 3.00 | K48: 2.00 | N48: 50.00 | Q48: =N48/K48 -> 25
B49: 0.00 | C49: 1.00 | D49: -1.00 | H49: 1.00 | I49: 1.00 | J49: 0.00 | K49: -1.00 | N49: 15.00 | Q49: =N49/K49 -> -15 | R49: x
G51: CB.B-1D | H51: =MMULT(B44:D44,H47:K49) -> 2.00 | I51: 4.00 | J51: 2.00 | K51: 4.00 | M51: F=CB.B-1.b | N51: =MMULT(B44:D44,N47:N49) -> 60.00
G52: R= -CD+CB.B-1D | H52: =SUM(H51,-H44) -> 2.00 | I52: =SUM(I51,-I44) -> 1.00 | J52: =SUM(J51,-J44) -> 1.00 | K52: -1.00
G53: w entra na base
A56: variáveis básicas | B56: w | C56: f1 | D56: f3 | G56: variáveis não básicas | H56: f2 | I56: x | J56: z | K56: y | M56: Termos Independentes
A57: B | B57: 2.00 | C57: -1.00 | D57: 0.00 | G57: D | H57: 0.00 | I57: 1.00 | J57: -1.00 | K57: 2.00 | M57: b | N57: 10.00
B58: 2.00 | C58: 0.00 | D58: 0.00 | H58: 1.00 | I58: 2.00 | J58: 1.00 | K58: 1.00 | N58: 30.00
B59: 3.00 | C59: 0.00 | D59: -1.00 | H59: 0.00 | I59: 1.00 | J59: 1.00 | K59: 1.00 | N59: 15.00
A61: CB | B61: 5.00 | C61: 0.00 | D61: 0.00 | G61: CD | H61: 0.00 | I61: 3.00 | J61: 1.00 | K61: 2.00
A64: B-1 | B64: =MINVERSE(B57:D59) -> 0.00 | C64: 0.50 | D64: 0.00 | G64: B-1.D | H64: =MMULT(B64:D66,H57:K59) -> 0.50 | I64: 1.00 | J64: 0.50 | K64: 0.50 | M64: B-1.b | N64: =MMULT(B64:D66,N57:N59) -> 15.00
B65: -1.00 | C65: 1.00 | D65: 0.00 | H65: 1.00 | I65: 1.00 | J65: 2.00 | K65: -1.00 | N65: 20.00
B66: 0.00 | C66: 1.50 | D66: -1.00 | H66: 1.50 | I66: 2.00 | J66: 0.50 | K66: 0.50 | N66: 30.00
G68: CB.B-1D | H68: =MMULT(B61:D61,H64:K66) -> 2.50 | I68: 5.00 | J68: 2.50 | K68: 2.50 | M68: F=CB.B-1.b | N68: =MMULT(B61:D61,N64:N66) -> 75.00
G69: R= -CD+CB.B-1D | H69: =SUM(H68,-H61) -> 2.50 | I69: =SUM(I68,-I61) -> 2.00 | J69: =SUM(J68,-J61) -> 1.50 | K69: =SUM(K68,-K61) -> 0.50
A74: 6) 7)
A75: variáveis básicas | B75: y | C75: f1 | D75: f3 | E75: f4 | G75: variáveis não básicas | H75: f2 | I75: x | J75: z | M75: Termos Independentes
A76: B | B76: 2.00 | C76: -1.00 | D76: 0.00 | E76: 0.00 | G76: D | H76: 0.00 | I76: 1.00 | J76: -1.00 | M76: b | N76: 10.00
B77: 1.00 | C77: 0.00 | D77: 0.00 | E77: 0.00 | H77: 1.00 | I77: 2.00 | J77: 1.00 | N77: 30.00
B78: 1.00 | C78: 0.00 | D78: -1.00 | E78: 0.00 | H78: 0.00 | I78: 1.00 | J78: 1.00 | N78: 15.00
B79: 1.00 | C79: 0.00 | D79: 0.00 | E79: 1.00 | H79: 0.00 | I79: 0.00 | J79: 1.00 | N79: 20.00
A81: CB | B81: 2.00 | C81: 0.00 | D81: 0.00 | E81: 0.00 | G81: CD | H81: 0.00 | I81: 3.00 | J81: 1.00
A84: B-1 | B84: =MINVERSE(B76:E79) -> 0.00 | C84: 1.00 | D84: 0.00 | E84: 0.00 | G84: B-1.D | H84: =MMULT(B84:E87,H76:J79) -> 1 | I84: 2 | J84: 1 | M84: B-1.b | N84: =MMULT(B84:E87,N76:N79) -> 30.00 | P84: delta | Q84: =N84/J84 -> 30
B85: -1.00 | C85: 2.00 | D85: 0.00 | E85: 0.00 | H85: 2 | I85: 3 | J85: 3 | N85: 50.00 | Q85: =N85/J85 -> 16.66666667 | R85: Y sai da base
B86: 0.00 | C86: 1.00 | D86: -1.00 | E86: 0.00 | H86: 1 | I86: 1 | J86: 0 | N86: 15.00 | Q86: =N86/J86 -> 
B87: 0.00 | C87: -1.00 | D87: 0.00 | E87: 1.00 | H87: -1 | I87: -2 | J87: 0 | N87: -10.00 | Q87: =N87/J87 -> 
G89: CB.B-1D | H89: =MMULT(B81:E81,H84:J87) -> 2 | I89: 4 | J89: 2.00
G90: R= -CD+CB.B-1D | H90: =SUM(H89,-H81) -> 2 | I90: =SUM(I89,-I81) -> 1 | J90: =J89-J81 -> 1.00 | M90: F=CB.B-1.b | N90: =MMULT(B81:D81,N84:N86) -> 60.00
Q92: Z | R92: f2 | S92: f4
B93: 2.00 | C93: -1.00 | D93: 0.00 | E93: 1.00 | G93: =MINVERSE(B93:E96) -> 0 | H93: 0 | I93: 0 | J93: 1 | M93: =MMULT(G93:J96,Q93:S96) -> 1 | N93: 0.00 | O93: 1 | Q93: -1 | R93: 0 | S93: 0 | U93: =MMULT(G93:J96,N76:N79) -> 20
B94: 1.00 | C94: 0.00 | D94: 0.00 | E94: 2.00 | G94: -1 | H94: 0.5 | I94: 0 | J94: 1.5 | M94: 3 | N94: 0.50 | O94: 1.5 | Q94: 1 | R94: 1 | S94: 0 | U94: 35
B95: 1.00 | C95: 0.00 | D95: -1.00 | E95: 1.00 | G95: 0 | H95: 0.5 | I95: -1 | J95: 0.5 | M95: 0 | N95: 0.50 | O95: 0.5 | Q95: 1 | R95: 0 | S95: 0 | U95: 10
B96: 1.00 | C96: 0.00 | D96: 0.00 | E96: 0.00 | G96: 0 | H96: 0.5 | I96: 0 | J96: -0.5 | M96: 0 | N96: 0.50 | O96: -0.5 | Q96: 1 | R96: 0 | S96: 1 | U96: 5
A104: 8)
A105: testar a base y,f1,f3
A106: variáveis básicas | B106: y | C106: f1 | D106: f3 | G106: variáveis não básicas | H106: f2 | I106: x | J106: z | M106: Termos Independentes
A107: B | B107: 5.30 | C107: -1.00 | D107: 0.00 | G107: D | H107: 0.00 | I107: 1.00 | J107: -1.00 | M107: b | N107: 159.00 | O107: Beta | P107: 160 | Q107: 159
B108: 1.00 | C108: 0.00 | D108: 0.00 | H108: 1.00 | I108: 2.00 | J108: 1.00 | N108: 30.00
B109: 1.00 | C109: 0.00 | D109: -1.00 | H109: 0.00 | I109: 1.00 | J109: 1.00 | N109: 15.00
A111: CB | B111: 2.00 | C111: 0.00 | D111: 0.00 | G111: CD | H111: 0.00 | I111: 3.00 | J111: 1.00
A114: B-1 | B114: =MINVERSE(B107:D109) -> 0.00 | C114: 1.00 | D114: 0.00 | G114: B-1.D | H114: =MMULT(B114:D116,H107:J109) -> 1.00 | I114: 2.00 | J114: 1.00 | M114: B-1.b | N114: =MMULT(B114:D116,N107:N109) -> 30.00
B115: -1.00 | C115: 5.30 | D115: 0.00 | H115: 5.30 | I115: 9.60 | J115: 6.30 | N115: 0.00 | P115: (-1)*Beta+5,3*30
B116: 0.00 | C116: 1.00 | D116: -1.00 | H116: 1.00 | I116: 1.00 | J116: 0.00 | N116: 15.00
G118: CB.B-1D | H118: =MMULT(B111:D111,H114:J116) -> 2.00 | I118: 4.00 | J118: 2.00 | M118: F=CB.B-1.b | N118: =MMULT(B111:D111,N114:N116) -> 60.00
G119: R= -CD+CB.B-1D | H119: =SUM(H118,-H111) -> 2.00 | I119: =SUM(I118,-I111) -> 1.00 | J119: =J118-J111 -> 1.00
